Workbook

Sheet Portfolio Analysis
B2: Unit Mix | C2: Actual | D2: Pro Forma Rents
B3: 24x 3 Bed 2 Bath (Station) | C3: =975*24*12 -> 280800 | D3: =1000*24*12 -> 288000
B4: 16x 1 Bed 1 Bath (Station) | C4: =750*16*12 -> 144000 | D4: =775*16*12 -> 148800
B5: 11x 3 Bed 2.5 Bath (Campus) | C5: =1000*11*12 -> 132000 | D5: =1100*11*12 -> 145200
B6: 24 Studios (Campus) | C6: =650*24*12 -> 187200 | D6: =700*24*12 -> 201600
B7: Total | C7: =SUM(C3:C6) -> 744000 | D7: =SUM(D3:D6) -> 783600
C9: Actual | D9: Pro Forma
B10: Gross Income | C10: =55625*12+48000 -> 715500 | D10: =D7 -> 783600
B11: HOA Income | C11: =2216*12 -> 26592 | D11: 38064
B12: Laundry Income | C12: 5199 | D12: =C12 -> 5199
B13: Pet Fees | C13: 3525 | D13: =C13 -> 3525
B14: Forfeited Deposits | C14: 4778 | D14: =C14 -> 4778
B15: Other Income | C15: 625 | D15: =C15 -> 625
B16: Total Income | C16: =SUM(C10:C15) -> 756219 | D16: =SUM(D10:D15) -> 835791
B18: Taxes | C18: =18392+29489 -> 47881 | D18: =C18 -> 47881
B19: Insurance | C19: =3232.44*12 -> 38789.28 | D19: 38789.28
B20: Water and Sewer | C20: 34465 | D20: 34465
B21: Vacancy | C21: =C10*0.025 -> 17887.5 | D21: =D10*0.025 -> 19590
B22: Internet | C22: 38064 | D22: =C22 -> 38064
B23: Trash | C23: 6832 | D23: 6832
B24: Electric | C24: 2901 | D24: 2901
B25: Maintenance | C25: =C10*0.02 -> 14310 | D25: =D10*0.02 -> 15672
B26: MGMT | C26: =C10*0.085 -> 60817.5 | D26: =D10*0.085 -> 66606
B27: Total Expenses | C27: =SUM(C18:C26) -> 261947.28 | D27: =SUM(D18:D26) -> 270800.28
B29: NOI | C29: =C16-C27 -> 494271.72 | D29: =D16-D27 -> 564990.72
B30: CAP Rate | C30: =C29/C31 -> 0.06817540966 | D30: 0.07792975448
B31: Sale Price | C31: 7250000 | D31: 7250000
